[Event "44th Chess Olympiad Women 2022"]
[Site "Chennai"]
[Date "2022.08.09"]
[Round "11.10"]
[White "Krasteva, Beloslava"]
[Black "Lahav, Michal"]
[Result "1-0"]
[ECO "D10"]
[WhiteElo "2249"]
[BlackElo "2191"]
[Annotator "RC"]
[PlyCount "225"]
[EventDate "2022.07.29"]
[EventType "team-tourn"]
[EventCountry "IND"]
[SourceTitle "playchess.com"]
[Source "ChessBase"]
[SourceQuality "1"]
[WhiteTeam "Bulgaria"]
[BlackTeam "Israel"]
[WhiteTeamCountry "BUL"]
[BlackTeamCountry "ISR"]
[TimeControl "40/5400+30:1800+30"]

1. c4 {[%emt 0:01:26]} c6 {[%emt 0:00:10]} 2. d4 {[%emt 0:01:03]} d5 {[%emt 0:00:05]} 3. Nc3 {[%emt 0:00:28]} Nf6 {[%emt 0:00:09]} 4. e3 {[%emt 0:00:20]} Bf5 {[%emt 0:00:08]} 5. cxd5 {[%emt 0:00:42]} cxd5 {[%emt 0:00:12]} 6. Qb3 {[%emt 0:00:05]} Nc6 {[%emt 0:00:11]} 7. Qxb7 {[%emt 0:03:26]} Bd7 {[%emt 0:00:15]} 8. Qb3 {[%emt 0:01:14]} Rb8 {[%emt 0:00:14]} 9. Qd1 {[%emt 0:00:34]} e5 {[%emt 0:00:22]} 10. dxe5 {[%emt 0:07:53]} Nxe5 {[%emt 0:00:10]} 11. Be2 {[%emt 0:02:27]} Bd6 {[%emt 0:00:16]} 12. Nf3 {[%emt 0:00:55]} O-O {[%emt 0:00:47]} 13. O-O {[%emt 0:01:54]} Nxf3+ {[%emt 0:00:40]} 14. Bxf3 {[%emt 0:00:06]} Qc7 {[%emt 0:02:03]} 15. g3 {[%emt 0:03:10]} Rfd8 {[%emt 0:03:35]} 16. Ne2 {[%emt 0:06:18]} Be5 {[%emt 0:05:45]} 17. Nd4 {[%emt 0:01:47]} Ne4 {[%emt 0:00:44]} 18. b3 {[%emt 0:08:29]} Rb6 {[%emt 0:03:52]} 19. Bb2 {[%emt 0:06:12]} Rg6 {[%emt 0:07:07]} 20. Bg2 {[%emt 0:01:34]} h5 {[%emt 0:24:22]} 21. Rc1 {[%emt 0:07:28]} Qd6 {[%emt 0:09:23]} 22. f4 {[%emt 0:11:49]} Bf6 {[%emt 0:02:38]} 23. Bxe4 {[%emt 0:02:27]} dxe4 {[%emt 0:00:07]} 24. Qxh5 {[%emt 0:00:21]} Qa6 {[%emt 0:03:39]} 25. Rf2 {[%emt 0:02:13]} Bg4 {[%emt 0:10:51]} 26. Qb5 {[%emt 0:01:56]} Bxd4 {[%emt 0:22:40]} 27. Qxa6 {[%emt 0:00:09]} Bxe3 {[%emt 0:00:13]} 28. Qa5 {[%emt 0:07:09]} Bb6 {[%emt 0:00:15]} 29. Qb5 {[%emt 0:02:23]} Bxf2+ {[%emt 0:02:22]} 30. Kxf2 {[%emt 0:00:03]} Rd2+ {[%emt 0:00:02]} 31. Kg1 {[%emt 0:01:21]} Rxb2 {[%emt 0:00:03]} 32. Qe8+ {[%emt 0:00:25]} Kh7 {[%emt 0:00:03]} 33. Qxe4 {[%emt 0:00:54]} f5 {[%emt 0:00:59]} 34. Qd3 {[%emt 0:07:58]} Rxa2 {[%emt 0:00:57]} 35. Rc2 {[%emt 0:00:57]} Ra1+ {[%emt 0:00:57]} 36. Kg2 {[%emt 0:00:24]} Rh6 {[%emt 0:00:18]} 37. Qd4 {[%emt 0:07:02]} Bh3+ {[%emt 0:01:17]} 38. Kf2 {[%emt 0:00:01]} Rf1+ {[%emt 0:01:00]} 39. Ke2 {[%emt 0:00:35]} Re6+ {[%emt 0:00:36]} 40. Kd2 {[%emt 0:00:17]} Bg4 {[%emt 0:00:32]} 41. Kc3 {[%emt 0:32:15]} Rb6 {[%emt 0:04:14]} 42. Kb2 {[%emt 0:00:00]} Rd1 {[%emt 0:07:42]} 43. Rd2 {[%emt 0:00:00]} Rxd2+ {[%emt 0:02:12]} 44. Qxd2 {[%emt 0:00:00]} a6 {[%emt 0:00:09]} 45. Qd3 {[%emt 0:00:00]} Rh6 {[%emt 0:00:34]} 46. Ka3 {[%emt 0:00:00]} Rf6 {[%emt 0:00:21]} 47. Kb4 {[%emt 0:00:00]} Bh3 {[%emt 0:04:30]} 48. Kc5 {[%emt 0:00:00]} Bg2 {[%emt 0:01:32]} 49. Qe2 {[%emt 0:00:00]} Bh3 {[%emt 0:04:24]} 50. Kb4 {[%emt 0:00:00]} Bg4 {[%emt 0:00:04]} 51. Qe3 {[%emt 0:00:00]} Rh6 {[%emt 0:00:06]} 52. Ka5 {[%emt 0:00:00]} Bh3 {[%emt 0:00:34]} 53. Qe5 {[%emt 0:00:00]} Bg4 {[%emt 0:00:15]} 54. b4 {[%emt 0:00:00]} Bh3 {[%emt 0:00:04]} 55. Qe2 {[%emt 0:04:50]} Bg4 {[%emt 0:00:23]} 56. Qc2 {[%emt 0:02:13]} Kg8 {[%emt 0:00:31]} 57. Qc7 {[%emt 0:00:43]} Kh7 {[%emt 0:00:12]} 58. Qd8 {[%emt 0:00:49]} Be2 {[%emt 0:03:25]} 59. h3 {[%emt 0:01:50]} Rxh3 {[%emt 0:01:21]} 60. Qd2 {[%emt 0:00:51]} Bb5 {[%emt 0:02:17]} 61. Qc2 {[%emt 0:00:41]} Kh6 {[%emt 0:04:34]} 62. Qb3 {[%emt 0:00:46]} Kh7 {[%emt 0:00:39]} 63. Qc2 {[%emt 0:00:30]} Kh6 {[%emt 0:00:06]} 64. Qg2 {[%emt 0:00:16]} Rh5 {[%emt 0:00:16]} 65. Qa2 {[%emt 0:00:44]} Bd3 {[%emt 0:02:03]} 66. Qd5 {[%emt 0:00:26]} Bb5 {[%emt 0:00:21]} 67. Qe6+ {[%emt 0:00:35]} Kh7 {[%emt 0:00:02]} 68. Qf7 {[%emt 0:00:12]} Kh6 {[%emt 0:00:42]} 69. Kb6 {[%emt 0:00:24]} Bd3 {[%emt 0:00:51]} 70. Kc5 {[%emt 0:00:47]} Rh3 {[%emt 0:00:34]} 71. Qe6+ {[%emt 0:00:30]} Kh7 {[%emt 0:00:01]} 72. Qe3 {[%emt 0:00:32]} Be4 {[%emt 0:00:33]} 73. Kd6 {[%emt 0:00:33]} Rh6+ {[%emt 0:00:36]} 74. Ke5 {[%emt 0:00:22]} Rg6 {[%emt 0:00:22]} 75. Qe2 {[%emt 0:00:35]} Kg8 {[%emt 0:00:36]} 76. g4 {[%emt 0:00:36]} Rxg4 {[%emt 0:00:53]} 77. Qxa6 {[%emt 0:00:07]} Kh7 {[%emt 0:00:12]} 78. b5 {[%emt 0:00:34]} Rg6 {[%emt 0:00:48]} 79. b6 {[%emt 0:00:42]} Rf6 {[%emt 0:00:18]} 80. Qa7 {[%emt 0:00:27]} Kg6 {[%emt 0:00:42]} 81. b7 {[%emt 0:00:26]} Bxb7 {[%emt 0:00:02]} 82. Qxb7 {[%emt 0:00:06]} Kh7 {[%emt 0:00:16]} 83. Qc8 {[%emt 0:00:49]} Kg6 {[%emt 0:00:10]} 84. Qe8+ {[%emt 0:00:13]} Kh7 {[%emt 0:00:05]} 85. Qe7 {[%emt 0:00:26]} Kg6 {[%emt 0:00:05]} 86. Qe8+ {[%emt 0:00:23]} Kh7 {[%emt 0:00:02]} 87. Kd4 {[%emt 0:00:23]} Rd6+ {[%emt 0:00:10]} 88. Ke3 {[%emt 0:00:14]} Rh6 {[%emt 0:00:08]} 89. Kf3 {[%emt 0:00:24]} Rh3+ {[%emt 0:00:33]} 90. Kg2 {[%emt 0:00:07]} Rh6 {[%emt 0:00:03]} 91. Qf7 {[%emt 0:00:26]} Rg6+ {[%emt 0:00:40]} 92. Kf3 {[%emt 0:00:27]} Rf6 {[%emt 0:00:03]} 93. Qh5+ {[%emt 0:00:13]} Kg8 {[%emt 0:00:18]} 94. Kg3 {[%emt 0:00:57]} Kf8 {[%emt 0:00:13]} 95. Qh8+ {[%emt 0:00:18]} Kf7 {[%emt 0:00:02]} 96. Qc8 {[%emt 0:00:16]} Kg6 {[%emt 0:05:08]} 97. Kh4 {[%emt 0:00:24]} Kf7 {[%emt 0:00:26]} 98. Kg5 {[%emt 0:00:10]} Rg6+ {[%emt 0:00:30]} 99. Kxf5 {[%emt 0:00:09]} Rf6+ {[%emt 0:00:01]} 100. Ke5 {[%emt 0:00:55]} Rh6 {[%emt 0:00:02]} 101. f5 {[%emt 0:00:32]} Rf6 {[%emt 0:00:26]} 102. Kf4 {[%emt 0:01:16]} Rh6 {[%emt 0:00:04]} 103. Kg5 {[%emt 0:00:05]} Rf6 {[%emt 0:00:04]} 104. Qb8 {[%emt 0:00:54]} Rh6 {[%emt 0:00:05]} 105. Qd8 {[%emt 0:00:11]} Rf6 {[%emt 0:00:07]} 106. Qxf6+ {[%emt 0:00:56]} gxf6+ {[%emt 0:00:03]} 107. Kh6 {[%emt 0:00:06]} Kf8 {[%emt 0:00:57]} 108. Kg6 {[%emt 0:00:08]} Ke7 {[%emt 0:00:05]} 109. Kg7 {[%emt 0:00:05]} Ke8 {[%emt 0:00:02]} 110. Kxf6 {[%emt 0:00:18]} Kf8 {[%emt 0:00:03]} 111. Ke6 {[%emt 0:00:11]} Ke8 {[%emt 0:00:02]} 112. f6 {[%emt 0:00:07]} Kf8 {[%emt 0:00:01]} 113. f7 {[%emt 0:00:39]} 1-0

[Event "44th Chess Olympiad Women 2022"]
[Site "Chennai"]
[Date "2022.08.09"]
[Round "11.10"]
[White "Levitan, Ronit"]
[Black "Antova, Gabriela"]
[Result "0-1"]
[ECO "C55"]
[WhiteElo "2084"]
[BlackElo "2275"]
[Annotator "RC"]
[PlyCount "106"]
[EventDate "2022.07.29"]
[EventType "team-tourn"]
[EventCountry "IND"]
[SourceTitle "playchess.com"]
[Source "ChessBase"]
[SourceQuality "1"]
[WhiteTeam "Israel"]
[BlackTeam "Bulgaria"]
[WhiteTeamCountry "ISR"]
[BlackTeamCountry "BUL"]
[TimeControl "40/5400+30:1800+30"]

1. e4 {[%emt 0:00:42]} e5 {[%emt 0:00:33]} 2. Nf3 {[%emt 0:00:09]} Nc6 {[%emt 0:00:08]} 3. Bc4 {[%emt 0:00:05]} Nf6 {[%emt 0:00:12]} 4. d3 {[%emt 0:00:10]} h6 {[%emt 0:00:07]} 5. a4 {[%emt 0:04:06]} d6 {[%emt 0:03:40]} 6. Nc3 {[%emt 0:05:39]} a5 {[%emt 0:06:02]} 7. d4 {[%emt 0:07:33]} Bg4 {[%emt 0:05:30]} 8. dxe5 {[%emt 0:00:20]} dxe5 {[%emt 0:05:26]} 9. Be3 {[%emt 0:04:51]} Bb4 {[%emt 0:07:19]} 10. O-O {[%emt 0:13:32]} Bxc3 {[%emt 0:05:09]} 11. bxc3 {[%emt 0:00:09]} Qxd1 {[%emt 0:03:20]} 12. Rfxd1 {[%emt 0:00:29]} Nxe4 {[%emt 0:01:59]} 13. Re1 {[%emt 0:00:59]} O-O {[%emt 0:07:09]} 14. Bc1 {[%emt 0:15:50]} Bxf3 {[%emt 0:02:42]} 15. gxf3 {[%emt 0:00:08]} Nf6 {[%emt 0:05:35]} 16. Rb1 {[%emt 0:02:01]} Rab8 {[%emt 0:00:24]} 17. Ba3 {[%emt 0:02:41]} Rfe8 {[%emt 0:01:18]} 18. Rb5 {[%emt 0:09:39]} g6 {[%emt 0:14:53]} 19. Rc5 {[%emt 0:07:51]} Nd7 {[%emt 0:02:49]} 20. Rb5 {[%emt 0:00:55]} Nb6 {[%emt 0:07:31]} 21. Bb3 {[%emt 0:00:49]} Kg7 {[%emt 0:00:47]} 22. Bc5 {[%emt 0:00:22]} Nd7 {[%emt 0:00:53]} 23. Ba3 {[%emt 0:01:03]} b6 {[%emt 0:04:27]} 24. Rd5 {[%emt 0:03:47]} Nf6 {[%emt 0:01:23]} 25. Rdd1 {[%emt 0:00:06]} Rbd8 {[%emt 0:02:08]} 26. Bc4 {[%emt 0:01:53]} Rxd1 {[%emt 0:01:44]} 27. Rxd1 {[%emt 0:00:06]} Rd8 {[%emt 0:01:05]} 28. Rxd8 {[%emt 0:06:45]} Nxd8 {[%emt 0:00:02]} 29. Kf1 {[%emt 0:00:12]} Nh5 {[%emt 0:02:07]} 30. Ke2 {[%emt 0:02:07]} Nf4+ {[%emt 0:00:48]} 31. Ke3 {[%emt 0:00:11]} f5 {[%emt 0:00:22]} 32. Be7 {[%emt 0:03:59]} Nc6 {[%emt 0:00:51]} 33. Ba3 {[%emt 0:00:19]} Kf6 {[%emt 0:00:32]} 34. Bb5 {[%emt 0:01:26]} Ne7 {[%emt 0:00:19]} 35. c4 {[%emt 0:00:29]} c5 {[%emt 0:04:21]} 36. Bc1 {[%emt 0:03:12]} Nc8 {[%emt 0:00:24]} 37. Bd2 {[%emt 0:02:36]} Nd6 {[%emt 0:00:10]} 38. Ba6 {[%emt 0:00:35]} g5 {[%emt 0:01:26]} 39. Bc1 {[%emt 0:00:25]} Ne6 {[%emt 0:00:40]} 40. c3 {[%emt 0:01:02]} Nc7 {[%emt 0:02:45]} 41. Bb5 {[%emt 0:30:10]} Kg6 {[%emt 0:08:53]} 42. Ke2 {[%emt 0:00:00]} Kh5 {[%emt 0:07:36]} 43. Kf1 {[%emt 0:00:00]} Kh4 {[%emt 0:04:15]} 44. Kg2 {[%emt 0:00:00]} Ncxb5 {[%emt 0:02:27]} 45. cxb5 {[%emt 0:00:00]} Nc4 {[%emt 0:01:29]} 46. h3 {[%emt 0:00:00]} h5 {[%emt 0:02:34]} 47. Kh2 {[%emt 0:00:00]} g4 {[%emt 0:03:29]} 48. hxg4 {[%emt 0:00:00]} hxg4 {[%emt 0:00:08]} 49. fxg4 {[%emt 0:00:00]} Kxg4 {[%emt 0:00:16]} 50. Kg2 {[%emt 0:00:00]} e4 {[%emt 0:00:14]} 51. Kg1 {[%emt 0:00:00]} Kf3 {[%emt 0:00:17]} 52. Kf1 {[%emt 0:00:00]} f4 {[%emt 0:00:37]} 53. Ke1 {[%emt 0:00:00]} e3 {[%emt 0:00:18]} 0-1

[Event "44th Chess Olympiad Women 2022"]
[Site "Chennai"]
[Date "2022.08.09"]
[Round "11.11"]
[White "Sebag, Marie"]
[Black "Enkhtuul, Altan-Ulzii"]
[Result "1-0"]
[ECO "B05"]
[WhiteElo "2447"]
[BlackElo "2267"]
[Annotator "RC"]
[PlyCount "77"]
[EventDate "2022.07.29"]
[EventType "team-tourn"]
[EventCountry "IND"]
[SourceTitle "playchess.com"]
[Source "ChessBase"]
[SourceQuality "1"]
[WhiteTeam "France"]
[BlackTeam "Mongolia"]
[WhiteTeamCountry "FRA"]
[BlackTeamCountry "MGL"]
[TimeControl "40/5400+30:1800+30"]

1. e4 {[%emt 0:00:55]} Nf6 {[%emt 0:00:10]} 2. e5 {[%emt 0:00:32]} Nd5 {[%emt 0:00:07]} 3. d4 {[%emt 0:00:19]} d6 {[%emt 0:00:05]} 4. Nf3 {[%emt 0:00:38]} Bg4 {[%emt 0:00:42]} 5. Be2 {[%emt 0:00:50]} e6 {[%emt 0:00:04]} 6. O-O {[%emt 0:02:20]} Be7 {[%emt 0:00:04]} 7. h3 {[%emt 0:03:12]} Bh5 {[%emt 0:00:13]} 8. c4 {[%emt 0:02:38]} Nb6 {[%emt 0:02:24]} 9. Be3 {[%emt 0:15:27]} O-O {[%emt 0:00:29]} 10. Nc3 {[%emt 0:01:03]} dxe5 {[%emt 0:01:28]} 11. Nxe5 {[%emt 0:00:16]} Bxe2 {[%emt 0:00:09]} 12. Qxe2 {[%emt 0:01:17]} N8d7 {[%emt 0:00:05]} 13. Rad1 {[%emt 0:20:54]} Qc8 {[%emt 0:11:41]} 14. Bf4 {[%emt 0:04:17]} Nf6 {[%emt 0:01:26]} 15. Rfe1 {[%emt 0:03:10]} Re8 {[%emt 0:01:34]} 16. Qf3 {[%emt 0:03:29]} a6 {[%emt 0:06:49]} 17. b3 {[%emt 0:05:09]} Rb8 {[%emt 0:08:13]} 18. Rd3 {[%emt 0:06:22]} Nbd7 {[%emt 0:00:54]} 19. Red1 {[%emt 0:08:42]} Nf8 {[%emt 0:01:32]} 20. Bg5 {[%emt 0:01:30]} h6 {[%emt 0:03:54]} 21. Bxf6 {[%emt 0:05:54]} Bxf6 {[%emt 0:00:01]} 22. Ne4 {[%emt 0:00:13]} Nh7 {[%emt 0:01:29]} 23. Qh5 {[%emt 0:01:19]} Re7 {[%emt 0:10:08]} 24. Rg3 {[%emt 0:00:17]} Bg5 {[%emt 0:06:38]} 25. h4 {[%emt 0:01:47]} Bf4 {[%emt 0:00:23]} 26. Rg4 {[%emt 0:01:52]} Bxe5 {[%emt 0:01:18]} 27. dxe5 {[%emt 0:00:10]} Kh8 {[%emt 0:00:37]} 28. Rf4 {[%emt 0:02:13]} Qe8 {[%emt 0:00:05]} 29. Qf3 {[%emt 0:01:55]} Nf8 {[%emt 0:01:06]} 30. Rg4 {[%emt 0:02:39]} Ng6 {[%emt 0:05:28]} 31. Nf6 {[%emt 0:01:54]} Qf8 {[%emt 0:05:27]} 32. Qg3 {[%emt 0:00:48]} gxf6 {[%emt 0:10:50]} 33. exf6 {[%emt 0:00:05]} Ree8 {[%emt 0:03:23]} 34. h5 {[%emt 0:00:08]} Red8 {[%emt 0:01:56]} 35. Rxd8 {[%emt 0:01:05]} Qxd8 {[%emt 0:00:13]} 36. hxg6 {[%emt 0:00:13]} fxg6 {[%emt 0:00:37]} 37. Rh4 {[%emt 0:01:50]} Kh7 {[%emt 0:01:48]} 38. Rxh6+ {[%emt 0:00:20]} Kg8 {[%emt 0:01:24]} 39. Qxg6+ {[%emt 0:00:05]} 1-0

[Event "44th Chess Olympiad Women 2022"]
[Site "Chennai"]
[Date "2022.08.09"]
[Round "11.11"]
[White "Savina, Anastasia"]
[Black "Munkhzul, Turmunkh"]
[Result "1/2-1/2"]
[ECO "D55"]
[WhiteElo "2377"]
[BlackElo "2277"]
[Annotator "RC"]
[PlyCount "101"]
[EventDate "2022.07.29"]
[EventType "team-tourn"]
[EventCountry "IND"]
[SourceTitle "playchess.com"]
[Source "ChessBase"]
[SourceQuality "1"]
[WhiteTeam "France"]
[BlackTeam "Mongolia"]
[WhiteTeamCountry "FRA"]
[BlackTeamCountry "MGL"]
[TimeControl "40/5400+30:1800+30"]

1. d4 {[%emt 0:00:06]} Nf6 {[%emt 0:00:09]} 2. c4 {[%emt 0:00:04]} e6 {[%emt 0:00:15]} 3. Nf3 {[%emt 0:00:12]} d5 {[%emt 0:00:12]} 4. Nc3 {[%emt 0:00:08]} Be7 {[%emt 0:00:22]} 5. Bg5 {[%emt 0:00:06]} h6 {[%emt 0:00:48]} 6. Bxf6 {[%emt 0:00:20]} Bxf6 {[%emt 0:00:07]} 7. e3 {[%emt 0:00:29]} O-O {[%emt 0:00:54]} 8. Rc1 {[%emt 0:00:11]} c6 {[%emt 0:02:56]} 9. Bd3 {[%emt 0:00:17]} Nd7 {[%emt 0:00:46]} 10. O-O {[%emt 0:00:11]} dxc4 {[%emt 0:05:44]} 11. Bxc4 {[%emt 0:00:06]} e5 {[%emt 0:00:29]} 12. h3 {[%emt 0:00:33]} exd4 {[%emt 0:01:52]} 13. exd4 {[%emt 0:00:06]} Nb6 {[%emt 0:00:51]} 14. Bb3 {[%emt 0:00:11]} Bf5 {[%emt 0:03:44]} 15. Re1 {[%emt 0:00:40]} Re8 {[%emt 0:14:05]} 16. g4 {[%emt 0:01:48]} Bg6 {[%emt 0:02:52]} 17. Rxe8+ {[%emt 0:05:44]} Qxe8 {[%emt 0:00:05]} 18. Qd2 {[%emt 0:00:21]} Qd7 {[%emt 0:02:09]} 19. Qf4 {[%emt 0:00:50]} Re8 {[%emt 0:06:43]} 20. Rd1 {[%emt 0:01:38]} Kh8 {[%emt 0:10:10]} 21. h4 {[%emt 0:22:42]} h5 {[%emt 0:13:34]} 22. g5 {[%emt 0:02:49]} Qg4+ {[%emt 0:00:33]} 23. Qxg4 {[%emt 0:01:27]} hxg4 {[%emt 0:00:06]} 24. Nh2 {[%emt 0:07:50]} Bd8 {[%emt 0:02:11]} 25. Nxg4 {[%emt 0:09:15]} Bc7 {[%emt 0:04:16]} 26. Kg2 {[%emt 0:08:34]} Bh5 {[%emt 0:03:45]} 27. f3 {[%emt 0:03:09]} Bf4 {[%emt 0:03:09]} 28. Ne5 {[%emt 0:06:51]} f6 {[%emt 0:06:48]} 29. Nd3 {[%emt 0:04:15]} Bc7 {[%emt 0:01:50]} 30. Ne4 {[%emt 0:10:33]} Rxe4 {[%emt 0:02:02]} 31. fxe4 {[%emt 0:00:42]} Bxd1 {[%emt 0:00:05]} 32. Bxd1 {[%emt 0:00:03]} Nc4 {[%emt 0:01:02]} 33. Bf3 {[%emt 0:03:37]} Bb6 {[%emt 0:00:48]} 34. d5 {[%emt 0:01:08]} cxd5 {[%emt 0:03:12]} 35. exd5 {[%emt 0:00:04]} fxg5 {[%emt 0:00:13]} 36. hxg5 {[%emt 0:00:07]} Bd8 {[%emt 0:00:19]} 37. g6 {[%emt 0:01:07]} Bf6 {[%emt 0:00:34]} 38. Kh3 {[%emt 0:08:24]} Kg8 {[%emt 0:00:13]} 39. b3 {[%emt 0:02:37]} Nd6 {[%emt 0:00:17]} 40. Kg4 {[%emt 0:00:34]} Kf8 {[%emt 0:00:11]} 41. Kf4 {[%emt 0:10:45]} Bc3 {[%emt 0:00:57]} 42. Nc5 {[%emt 0:01:57]} Ke7 {[%emt 0:00:12]} 43. Ne4 {[%emt 0:09:27]} Nxe4 {[%emt 0:00:24]} 44. Kxe4 {[%emt 0:00:06]} Kd6 {[%emt 0:00:04]} 45. Kd3 {[%emt 0:00:23]} Be1 {[%emt 0:00:24]} 46. Kc4 {[%emt 0:00:06]} a6 {[%emt 0:00:21]} 47. Bg4 {[%emt 0:02:37]} b6 {[%emt 0:00:08]} 48. Bc8 {[%emt 0:02:47]} a5 {[%emt 0:00:06]} 49. Kb5 {[%emt 0:00:13]} Bf2 {[%emt 0:00:07]} 50. Be6 {[%emt 0:00:10]} Be3 {[%emt 0:00:05]} 51. Bf7 {[%emt 0:02:49]} 1/2-1/2

[Event "44th Chess Olympiad Women 2022"]
[Site "Chennai"]
[Date "2022.08.09"]
[Round "11.11"]
[White "Bayarmaa, Bayarjargal"]
[Black "Milliet, Sophie"]
[Result "1-0"]
[ECO "D23"]
[WhiteElo "2171"]
[BlackElo "2396"]
[Annotator "RC"]
[PlyCount "111"]
[EventDate "2022.07.29"]
[EventType "team-tourn"]
[EventCountry "IND"]
[SourceTitle "playchess.com"]
[Source "ChessBase"]
[SourceQuality "1"]
[WhiteTeam "Mongolia"]
[BlackTeam "France"]
[WhiteTeamCountry "MGL"]
[BlackTeamCountry "FRA"]
[TimeControl "40/5400+30:1800+30"]

1. d4 {[%emt 0:00:03]} d5 {[%emt 0:00:04]} 2. c4 {[%emt 0:00:05]} dxc4 {[%emt 0:00:03]} 3. Nf3 {[%emt 0:00:06]} Nf6 {[%emt 0:00:10]} 4. Qa4+ {[%emt 0:00:30]} c6 {[%emt 0:17:39]} 5. Qxc4 {[%emt 0:00:13]} Bf5 {[%emt 0:00:20]} 6. g3 {[%emt 0:03:37]} e6 {[%emt 0:00:59]} 7. Bg2 {[%emt 0:00:08]} Be7 {[%emt 0:01:43]} 8. O-O {[%emt 0:00:25]} O-O {[%emt 0:00:05]} 9. Nc3 {[%emt 0:00:31]} Qb6 {[%emt 0:18:31]} 10. Bg5 {[%emt 0:12:01]} h6 {[%emt 0:05:57]} 11. Bxf6 {[%emt 0:08:23]} Bxf6 {[%emt 0:00:04]} 12. Rfd1 {[%emt 0:00:16]} Qa6 {[%emt 0:07:01]} 13. Qb3 {[%emt 0:06:16]} Nd7 {[%emt 0:01:04]} 14. Rd2 {[%emt 0:04:33]} Rad8 {[%emt 0:03:22]} 15. Rc1 {[%emt 0:08:08]} e5 {[%emt 0:14:04]} 16. d5 {[%emt 0:13:20]} cxd5 {[%emt 0:03:52]} 17. Nxd5 {[%emt 0:00:30]} Be6 {[%emt 0:02:24]} 18. e4 {[%emt 0:03:41]} Bxd5 {[%emt 0:00:10]} 19. Rxd5 {[%emt 0:00:41]} Nb6 {[%emt 0:01:02]} 20. Bf1 {[%emt 0:07:47]} Qa4 {[%emt 0:00:50]} 21. Qxa4 {[%emt 0:00:15]} Nxa4 {[%emt 0:00:01]} 22. Ra5 {[%emt 0:00:44]} Nxb2 {[%emt 0:00:43]} 23. Rb1 {[%emt 0:04:33]} Nd1 {[%emt 0:04:33]} 24. Rc5 {[%emt 0:04:52]} g5 {[%emt 0:12:24]} 25. Be2 {[%emt 0:02:05]} g4 {[%emt 0:00:05]} 26. Ne1 {[%emt 0:00:56]} Nxf2 {[%emt 0:03:50]} 27. Kxf2 {[%emt 0:00:06]} b6 {[%emt 0:00:45]} 28. Rc7 {[%emt 0:01:55]} Rd4 {[%emt 0:00:28]} 29. Bd3 {[%emt 0:04:16]} Rfd8 {[%emt 0:00:25]} 30. Ke2 {[%emt 0:00:38]} Bg5 {[%emt 0:00:47]} 31. Rb5 {[%emt 0:05:44]} Ra4 {[%emt 0:01:11]} 32. Rb2 {[%emt 0:02:15]} Ra3 {[%emt 0:00:56]} 33. Rcc2 {[%emt 0:00:31]} Kg7 {[%emt 0:00:49]} 34. Rb3 {[%emt 0:00:10]} Ra4 {[%emt 0:00:19]} 35. Ng2 {[%emt 0:00:28]} f5 {[%emt 0:00:43]} 36. exf5 {[%emt 0:00:26]} e4 {[%emt 0:00:09]} 37. Bb5 {[%emt 0:01:03]} Rad4 {[%emt 0:00:20]} 38. Ne3 {[%emt 0:00:50]} h5 {[%emt 0:00:16]} 39. Rbc3 {[%emt 0:02:08]} Bf6 {[%emt 0:01:21]} 40. Rc7+ {[%emt 0:00:16]} Kh6 {[%emt 0:00:20]} 41. Rxa7 {[%emt 0:31:37]} Rb4 {[%emt 0:02:24]} 42. Bc6 {[%emt 0:00:00]} Bd4 {[%emt 0:06:57]} 43. Rd7 {[%emt 0:00:00]} Rxd7 {[%emt 0:01:44]} 44. Bxd7 {[%emt 0:00:00]} Bc5 {[%emt 0:00:20]} 45. Bc6 {[%emt 0:00:00]} Kg5 {[%emt 0:00:57]} 46. Rd2 {[%emt 0:00:00]} h4 {[%emt 0:02:40]} 47. f6 {[%emt 0:00:00]} hxg3 {[%emt 0:00:44]} 48. hxg3 {[%emt 0:00:00]} Bxe3 {[%emt 0:00:57]} 49. Kxe3 {[%emt 0:00:00]} Kxf6 {[%emt 0:00:09]} 50. Bxe4 {[%emt 0:00:00]} Ke5 {[%emt 0:01:35]} 51. Rd5+ {[%emt 0:00:00]} Ke6 {[%emt 0:00:03]} 52. Rd4 {[%emt 0:00:00]} Rb2 {[%emt 0:00:07]} 53. Bd5+ {[%emt 0:00:00]} Ke5 {[%emt 0:00:07]} 54. Bc4 {[%emt 0:00:00]} Kf5 {[%emt 0:01:32]} 55. Rd5+ {[%emt 0:00:00]} Kf6 {[%emt 0:00:09]} 56. Bb3 {[%emt 0:00:00]} 1-0

[Event "44th Chess Olympiad Women 2022"]
[Site "Chennai"]
[Date "2022.08.09"]
[Round "11.11"]
[White "Mungunzul, Bat-Erdene"]
[Black "Navrotescu, Andreea"]
[Result "1/2-1/2"]
[ECO "D22"]
[WhiteElo "2163"]
[BlackElo "2373"]
[Annotator "RC"]
[PlyCount "82"]
[EventDate "2022.07.29"]
[EventType "team-tourn"]
[EventCountry "IND"]
[SourceTitle "playchess.com"]
[Source "ChessBase"]
[SourceQuality "1"]
[WhiteTeam "Mongolia"]
[BlackTeam "France"]
[WhiteTeamCountry "MGL"]
[BlackTeamCountry "FRA"]
[TimeControl "40/5400+30:1800+30"]

1. d4 {[%emt 0:00:02]} d5 {[%emt 0:00:04]} 2. c4 {[%emt 0:00:09]} dxc4 {[%emt 0:00:07]} 3. Nf3 {[%emt 0:00:34]} Nf6 {[%emt 0:00:08]} 4. e3 {[%emt 0:02:25]} Bg4 {[%emt 0:01:40]} 5. Bxc4 {[%emt 0:01:03]} e6 {[%emt 0:00:27]} 6. O-O {[%emt 0:04:44]} a6 {[%emt 0:00:54]} 7. Be2 {[%emt 0:00:45]} c5 {[%emt 0:11:21]} 8. b3 {[%emt 0:03:11]} Nc6 {[%emt 0:04:35]} 9. Bb2 {[%emt 0:03:03]} Rc8 {[%emt 0:09:15]} 10. Nbd2 {[%emt 0:04:10]} Be7 {[%emt 0:10:24]} 11. Nc4 {[%emt 0:08:53]} O-O {[%emt 0:02:43]} 12. Rc1 {[%emt 0:01:07]} b5 {[%emt 0:08:08]} 13. Nce5 {[%emt 0:00:51]} Nxe5 {[%emt 0:00:25]} 14. Nxe5 {[%emt 0:00:45]} Bxe2 {[%emt 0:00:28]} 15. Qxe2 {[%emt 0:00:09]} Qb6 {[%emt 0:00:40]} 16. Ng4 {[%emt 0:09:14]} c4 {[%emt 0:25:02]} 17. Nxf6+ {[%emt 0:02:28]} gxf6 {[%emt 0:03:12]} 18. bxc4 {[%emt 0:01:55]} Rxc4 {[%emt 0:01:22]} 19. Rxc4 {[%emt 0:00:25]} bxc4 {[%emt 0:00:02]} 20. Bc3 {[%emt 0:00:10]} Qb5 {[%emt 0:01:42]} 21. Qf3 {[%emt 0:09:35]} Rc8 {[%emt 0:05:06]} 22. h3 {[%emt 0:01:07]} Kf8 {[%emt 0:03:37]} 23. Rd1 {[%emt 0:01:56]} Qa4 {[%emt 0:01:56]} 24. d5 {[%emt 0:10:04]} Rd8 {[%emt 0:00:34]} 25. e4 {[%emt 0:00:13]} Qxa2 {[%emt 0:03:14]} 26. Ra1 {[%emt 0:13:22]} Qb3 {[%emt 0:00:04]} 27. Rxa6 {[%emt 0:00:51]} Qb1+ {[%emt 0:02:12]} 28. Kh2 {[%emt 0:00:10]} Qd3 {[%emt 0:00:04]} 29. dxe6 {[%emt 0:04:30]} Bd6+ {[%emt 0:02:37]} 30. e5 {[%emt 0:00:30]} Qxf3 {[%emt 0:00:28]} 31. gxf3 {[%emt 0:00:07]} Bxe5+ {[%emt 0:01:14]} 32. Bxe5 {[%emt 0:00:30]} fxe5 {[%emt 0:00:01]} 33. Rc6 {[%emt 0:00:09]} Rd4 {[%emt 0:02:12]} 34. Rc7 {[%emt 0:00:41]} fxe6 {[%emt 0:00:33]} 35. Rxh7 {[%emt 0:00:25]} Ke8 {[%emt 0:00:29]} 36. Rc7 {[%emt 0:00:08]} Kd8 {[%emt 0:00:21]} 37. Rc5 {[%emt 0:00:15]} Kd7 {[%emt 0:00:03]} 38. Kg3 {[%emt 0:01:59]} Kd6 {[%emt 0:00:50]} 39. Rc8 {[%emt 0:00:09]} Kd7 {[%emt 0:00:14]} 40. Rc5 {[%emt 0:00:33]} Kd6 {[%emt 0:00:04]} 41. Rc8 {[%emt 0:30:10]} Kd7 {[%emt 0:25:11]} 1/2-1/2